bitfinex/quotes_BTCUSD_20251219
["timestamp","ask_amount","ask_price","bid_price","bid_amount"]
[1766172124616,0.06839558,87725.0,87708.0,0.56482]
[1766172124776,0.01139899,87727.0,87713.0,0.01368293]
[1766172124973,0.05699525,87727.0,87713.0,0.01368293]
[1766172125178,0.60353,87729.0,87713.0,0.01368293]
[1766172125389,0.00576,87729.0,87713.0,0.0820877]
[1766172125567,0.00576,87734.0,87717.0,0.01140029]
[1766172125770,0.05699109,87733.0,87718.0,0.00576]
[1766172126244,0.01139834,87732.0,87718.0,0.00576]
[1766172126470,0.00576,87734.0,87719.0,0.01]
[1766172126663,0.068745,87741.0,87724.0,0.89211]
[1766172126846,0.00036152,87741.0,87725.0,0.00576]
[1766172127222,0.0117587,87741.0,87725.0,0.00576]
[1766172127435,0.0687448,87741.0,87725.0,0.00576]
[1766172127635,0.0687448,87741.0,87714.0,0.01140068]
[1766172127636,0.001099,87725.0,87714.0,0.01140068]
[1766172127857,0.001099,87725.0,87719.0,0.01140003]
[1766172128100,0.0058,87736.0,87719.0,0.01140003]
[1766172128288,0.0058,87736.0,87719.0,0.06840007]
[1766172128431,0.0058,87736.0,87720.0,0.06839934]
[1766172128634,0.0058,87736.0,87721.0,0.01139977]
[1766172128834,0.0058,87736.0,87717.0,0.01140029]
[1766172128835,0.01139795,87735.0,87717.0,0.01140029]
[1766172129103,0.0058,87736.0,87717.0,0.01140029]
[1766172129104,0.0741874,87736.0,87719.0,0.01140003]
[1766172129256,0.01139821,87733.0,87716.0,0.01140042]
[1766172129430,0.0741874,87736.0,87719.0,0.01140003]
[1766172129631,0.59777,87723.0,87709.0,0.0514]
[1766172129876,0.59777,87723.0,87690.0,0.32729]
[1766172129877,0.59777,87723.0,87706.0,0.00576]
[1766172130059,0.01140003,87719.0,87706.0,0.00576]
[1766172130416,0.01140029,87717.0,87706.0,0.00576]
[1766172130652,0.0114012,87710.0,87700.0,0.00576]
[1766172130866,0.01140094,87712.0,87689.0,0.32729]
[1766172130867,0.00576,87712.0,87698.0,0.01140276]
[1766172131178,0.01140107,87711.0,87696.0,0.00576]
[1766172131322,0.07416598,87712.0,87696.0,0.00576]
[1766172131323,0.00576,87712.0,87696.0,0.00576]
[1766172131529,0.00576,87712.0,87697.0,0.01140289]
[1766172131724,0.00576,87712.0,87696.0,0.00576]
[1766172131725,0.00576,87712.0,87696.0,0.01944293]
[1766172131934,0.01140146,87708.0,87697.0,0.00010848]
[1766172132132,0.00576,87712.0,87697.0,0.00010848]
[1766172132338,0.00576,87712.0,87698.0,0.01140276]
[1766172132520,0.00576,87712.0,87698.0,0.06841648]
[1766172133128,0.00576,87712.0,87662.0,0.09377232]
[1766172133331,0.01140302,87696.0,87681.0,0.01368293]
[1766172133530,0.06841894,87695.0,87682.0,0.00576]
[1766172133733,0.06842012,87694.0,87682.0,0.00576]
[1766172133942,0.01140315,87695.0,87682.0,0.00576]
[1766172134168,0.01140302,87696.0,87682.0,0.00576]
[1766172134439,0.01140315,87695.0,87682.0,0.00576]
[1766172134751,0.01140328,87694.0,87682.0,0.00576]
[1766172135109,0.01140354,87692.0,87682.0,0.00576]
[1766172135335,0.22806667,87694.0,87682.0,0.00576]
[1766172135336,0.06842218,87691.0,87682.0,0.00576]
[1766172135535,0.0114038,87690.0,87682.0,0.00576]
[1766172135677,0.01140341,87693.0,87682.0,0.00576]
[1766172135881,0.01140354,87692.0,87682.0,0.00576]
[1766172136119,0.06842052,87693.0,87682.0,0.00576]
[1766172136507,0.01140328,87694.0,87682.0,0.00576]
[1766172136922,0.01140367,87691.0,87682.0,0.00576]
[1766172137146,0.01140367,87691.0,87671.0,0.01140628]
[1766172137147,0.00853867,87680.0,87669.0,0.56482]
[1766172137348,0.00853867,87680.0,87670.0,0.00576]
[1766172137808,0.00743967,87680.0,87671.0,0.89211]
[1766172138033,0.01140315,87695.0,87672.0,0.01140615]
[1766172138034,0.05701912,87690.0,87672.0,0.01140615]
[1766172138255,0.01140432,87686.0,87671.0,0.89211]
[1766172138427,0.01140432,87686.0,87671.0,0.32729]
[1766172138602,0.06842461,87688.0,87671.0,0.32729]
[1766172138603,0.01140406,87688.0,87671.0,0.32729]
[1766172138800,0.01140419,87687.0,87671.0,0.32729]
[1766172139030,0.01140458,87684.0,87671.0,0.32729]
[1766172139245,0.00576,87687.0,87672.0,0.00576]
[1766172139608,0.01140432,87686.0,87672.0,0.00576]
[1766172139810,0.00576,87687.0,87672.0,0.00576]
[1766172140137,0.01716341,87693.0,87677.0,0.31724]
[1766172140346,0.01140354,87692.0,87675.0,0.01140575]
[1766172140472,0.00576,87693.0,87677.0,0.01140549]
[1766172140677,0.01140367,87691.0,87674.0,0.01140589]
[1766172140878,0.001099,87674.0,87666.0,0.00576]
[1766172141103,0.90185,87691.0,87674.0,0.05702893]
[1766172141396,0.04564,87701.0,87673.0,0.01140602]
[1766172141397,0.01140146,87708.0,87687.0,0.01140419]
[1766172141599,0.06840703,87711.0,87688.0,0.58875]
[1766172141600,0.0114025,87700.0,87688.0,0.58875]
[1766172141943,0.01140302,87696.0,87677.0,0.06843266]
[1766172142099,0.01140302,87696.0,87675.0,0.01140575]
[1766172142100,0.01140328,87694.0,87680.0,0.00576]
[1766172142303,0.01140276,87698.0,87681.0,0.90023]
[1766172142506,0.00576,87699.0,87682.0,0.06842855]
[1766172142752,0.00576,87699.0,87684.0,0.06842751]
[1766172143134,0.0684166,87698.0,87681.0,0.90023]
[1766172143545,0.00576,87699.0,87683.0,0.01140471]
[1766172143708,0.00576,87699.0,87683.0,0.31724]
[1766172144071,0.01140315,87695.0,87681.0,0.00576]
[1766172144209,0.01140302,87696.0,87681.0,0.00576]
[1766172144407,0.01140289,87697.0,87681.0,0.00576]
[1766172144608,0.00576,87699.0,87682.0,0.01140484]
[1766172144808,0.00576,87699.0,87684.0,0.01140458]
[1766172145029,0.05701384,87698.0,87681.0,0.00576]
[1766172145388,0.01716263,87699.0,87683.0,0.05702336]
[1766172145389,0.00576,87699.0,87683.0,0.05702336]
[1766172145603,0.00576,87699.0,87684.0,0.01140458]
[1766172145776,0.01140289,87697.0,87681.0,0.00576]
[1766172145983,0.01716263,87699.0,87682.0,0.01140484]
[1766172146176,0.01140276,87698.0,87681.0,0.01716497]
[1766172146378,0.07417582,87699.0,87682.0,0.01140484]
[1766172146577,0.07417582,87699.0,87681.0,0.00576]
[1766172146578,0.057016,87695.0,87681.0,0.00576]
[1766172146826,0.01140315,87695.0,87681.0,0.00576]
[1766172147009,0.01140328,87694.0,87681.0,0.00576]
[1766172147208,0.05701482,87697.0,87681.0,0.01716497]
[1766172147209,0.59836,87697.0,87681.0,0.01716497]
[1766172147409,0.32736,87699.0,87682.0,0.01140484]
[1766172147716,0.00576,87699.0,87686.0,0.01140432]
[1766172147921,0.00576,87699.0,87688.0,0.01140406]
[1766172148404,0.00576,87699.0,87687.0,0.06842516]
[1766172149013,0.01716263,87699.0,87682.0,0.01140484]
[1766172149176,0.00576,87699.0,87682.0,0.06842885]
[1766172149393,0.00576,87699.0,87683.0,0.06842812]
[1766172149580,0.00576,87699.0,87683.0,0.01140471]
[1766172149781,0.00576,87699.0,87685.0,0.96865614]
[1766172150201,0.00576,87699.0,87688.0,0.06842438]
[1766172150620,0.00576,87699.0,87691.0,0.58299]
[1766172150966,0.00576,87701.0,87691.0,0.58299]
[1766172151176,0.00576,87701.0,87690.0,0.0114038]
[1766172151177,0.01,87715.0,87701.0,0.001099]
[1766172151302,0.01140172,87706.0,87701.0,0.001099]
[1766172151498,0.01140198,87704.0,87690.0,0.00576]
[1766172151698,0.01140224,87702.0,87690.0,0.00576]
[1766172152316,0.01140172,87706.0,87690.0,0.00576]
[1766172152657,0.92576,87707.0,87690.0,0.00576]
[1766172152834,0.05701145,87702.0,87690.0,0.00576]
[1766172153048,0.01140211,87703.0,87690.0,0.00576]
[1766172153281,0.3274,87704.0,87677.0,0.31724]
[1766172153482,0.01140458,87684.0,87677.0,5.352e-05]
[1766172153665,0.01716419,87687.0,87677.0,5.352e-05]
[1766172154023,0.00576,87687.0,87677.0,5.352e-05]
[1766172155038,0.00576,87694.0,87687.0,0.001099]
[1766172155181,0.00576,87694.0,87684.0,0.98123]
[1766172155384,0.00576,87694.0,87684.0,0.36809]
[1766172155586,0.00576,87694.0,87680.0,1.30333278]
[1766172155790,0.00576,87694.0,87682.0,0.99263484]
[1766172156165,0.01140224,87702.0,87685.0,0.0684265]
[1766172156505,0.01,87704.0,87686.0,0.06842537]
[1766172156711,0.00576,87701.0,87688.0,0.06842423]
[1766172156923,0.00576,87701.0,87689.0,0.01140393]
[1766172157282,0.01140289,87697.0,87684.0,0.98123]
[1766172157735,0.01140302,87696.0,87684.0,0.98123]
[1766172157941,0.00576,87701.0,87686.0,0.36809]
[1766172158356,0.01140055,87715.0,87693.0,0.37949341]
[1766172158549,0.01140107,87711.0,87696.0,0.61314]
[1766172158770,0.01140107,87711.0,87694.0,0.00576]
[1766172158771,0.01140159,87707.0,87694.0,0.00576]
[1766172159008,0.01140146,87708.0,87690.0,1.37175528]
[1766172159152,0.05700767,87708.0,87693.0,0.00576]
[1766172159352,0.36325107,87711.0,87690.0,0.9926338]
[1766172159353,0.42025766,87711.0,87690.0,0.9926338]
[1766172159557,0.42025766,87711.0,87693.0,0.01716341]
[1766172159558,0.35185,87711.0,87693.0,0.01716341]
[1766172159778,0.02716068,87714.0,87696.0,0.99263302]
[1766172159996,0.01576,87714.0,87696.0,0.99263302]
[1766172160196,0.06840514,87713.0,87696.0,0.98123]
[1766172160566,0.05700602,87711.0,87696.0,0.98123]
[1766172160767,0.0570063,87710.0,87696.0,0.98123]
[1766172160884,0.0684075,87710.0,87696.0,0.98123]
[1766172161097,0.0114012,87710.0,87696.0,0.98123]
[1766172161618,0.01140107,87711.0,87696.0,0.98123]
[1766172161838,0.06840646,87711.0,87696.0,0.98123]
[1766172162031,0.06840539,87713.0,87696.0,0.98123]
[1766172162236,0.08416535,87714.0,87696.0,0.99263302]
[1766172162436,0.02716068,87714.0,87696.0,0.98123]
[1766172162803,0.08416414,87714.0,87696.0,0.99263302]
[1766172162987,0.01140081,87713.0,87696.0,0.98123]
[1766172163189,0.08416414,87714.0,87696.0,0.99263302]
[1766172163366,0.01140172,87706.0,87696.0,0.98123]
[1766172163572,0.01140159,87707.0,87696.0,0.36809]
[1766172163746,0.01140107,87711.0,87696.0,0.36809]
[1766172164160,0.06840648,87711.0,87696.0,0.36809]
[1766172164355,0.06840733,87710.0,87696.0,0.36809]
[1766172164556,0.06840531,87713.0,87696.0,0.36809]
[1766172164764,0.43601414,87714.0,87696.0,0.37949302]
[1766172164963,0.00576,87713.0,87697.0,0.01140289]
[1766172165580,0.00576,87713.0,87700.0,0.0114025]
[1766172165836,0.04564,87722.0,87704.0,0.01140198]
[1766172166128,0.01576,87721.0,87706.0,0.99263172]
[1766172166270,0.0727589,87721.0,87707.0,0.98123]
[1766172166472,0.0669989,87721.0,87707.0,0.98123]
[1766172166717,0.00576,87720.0,87707.0,0.98123]
[1766172166912,0.01140029,87717.0,87701.0,0.98699]
[1766172167087,0.01140055,87715.0,87701.0,0.98699]
[1766172167292,0.01140107,87711.0,87701.0,0.00576]
[1766172167764,0.01140107,87711.0,87699.0,0.00576]
[1766172167899,0.0114012,87710.0,87699.0,0.00576]
[1766172168103,0.01140094,87712.0,87699.0,0.00576]
[1766172168740,0.01716068,87714.0,87699.0,0.00576]
[1766172168942,0.03077688,87738.0,87699.0,0.00576]
[1766172168943,0.01139938,87724.0,87704.0,0.06841191]
[1766172169139,0.00576,87719.0,87714.0,0.001099]
[1766172169623,0.01716003,87719.0,87705.0,0.36809]
[1766172169821,0.00576,87719.0,87705.0,0.36809]
[1766172170019,0.00576,87719.0,87676.0,0.01140562]
[1766172170020,0.0114025,87700.0,87676.0,0.01140562]
[1766172170247,0.00576,87699.0,87684.0,0.62454458]
[1766172170447,0.00576,87699.0,87685.0,0.01140445]
[1766172170651,0.00576,87699.0,87685.0,0.98123]
[1766172171453,0.00576,87699.0,87687.0,0.01140419]
[1766172171675,0.00576,87699.0,87689.0,0.01140393]
[1766172172018,0.00576,87699.0,87688.0,0.98123]
[1766172172994,0.00576,87699.0,87688.0,0.99263406]
[1766172173597,0.00576,87699.0,87688.0,0.36809]
[1766172174033,0.00576,87699.0,87683.0,0.00576]
[1766172174355,0.001099,87688.0,87683.0,0.00576]
[1766172174495,0.92389,87697.0,87683.0,0.01716471]
[1766172174687,0.35185,87725.0,87699.0,0.99263263]
[1766172174883,0.00576,87727.0,87714.0,0.05700339]
[1766172175086,0.00576,87727.0,87718.0,0.01140016]
[1766172175297,0.00576,87727.0,87717.0,0.89996836]
[1766172175496,0.00586843,87727.0,87713.0,0.62454081]
[1766172175692,0.00586843,87727.0,87713.0,0.98123]
[1766172175910,0.05699824,87723.0,87709.0,0.00576]
[1766172176133,0.01139912,87726.0,87709.0,0.00576]
[1766172176342,0.01139925,87725.0,87709.0,0.00576]
[1766172176537,0.58930742,87727.0,87709.0,0.00576]
[1766172176715,0.58930742,87727.0,87704.0,0.36809]
[1766172176716,0.01139951,87723.0,87704.0,0.36809]
[1766172176936,0.01140016,87718.0,87705.0,0.00576]
[1766172177146,0.0683996,87720.0,87705.0,0.00576]
[1766172177499,0.92389,87723.0,87707.0,0.06840919]
[1766172177618,0.00576,87722.0,87708.0,0.01140146]
[1766172177820,0.00576,87722.0,87709.0,0.01140133]
[1766172178109,0.00576,87722.0,87708.0,0.01140146]
[1766172178242,0.92389,87723.0,87708.0,0.01140146]
[1766172178445,0.92965,87723.0,87705.0,0.00576]
[1766172178846,0.92965,87723.0,87708.0,0.01140146]
[1766172179245,0.92965,87723.0,87709.0,0.01140133]
[1766172179853,0.92965,87723.0,87710.0,0.0114012]
[1766172179854,0.92389,87723.0,87710.0,0.0114012]
[1766172180104,0.94104951,87723.0,87705.0,0.98699]
[1766172180319,0.01139964,87722.0,87705.0,0.98699]
[1766172180557,0.01140003,87719.0,87705.0,0.98699]
[1766172180759,0.01140016,87718.0,87705.0,0.37385]
[1766172180969,0.35185,87714.0,87692.0,0.99263354]
[1766172181163,0.35185,87714.0,87694.0,0.01140328]
[1766172181164,0.92389,87711.0,87694.0,0.01140328]
[1766172181390,0.0114012,87710.0,87693.0,0.00576]
[1766172181592,0.01140354,87692.0,87676.0,0.36809]
[1766172181807,0.00576,87701.0,87684.0,0.05702252]
[1766172182013,0.01716237,87701.0,87692.0,0.001099]
[1766172182171,0.06841558,87700.0,87692.0,0.001099]
[1766172182373,0.07417555,87701.0,87684.0,0.38525458]
[1766172182633,0.00576,87701.0,87687.0,0.01140419]
[1766172182804,0.00576,87701.0,87684.0,0.37385]
[1766172183010,0.00576,87701.0,87685.0,0.01140445]
[1766172183200,0.01716237,87701.0,87684.0,0.37385]
[1766172183389,0.00576,87701.0,87685.0,0.01140445]
[1766172183599,0.00576,87701.0,87684.0,0.43087231]
[1766172183976,0.004661,87701.0,87691.0,0.98123]
[1766172184384,0.004661,87701.0,87691.0,0.36809]
[1766172186148,0.01140003,87719.0,87699.0,0.01140263]
[1766172186397,0.01140003,87719.0,87690.0,0.88856807]
[1766172186398,0.01140042,87716.0,87703.0,0.93919]
[1766172186603,0.01140055,87715.0,87703.0,0.93919]
[1766172186802,0.01140068,87714.0,87703.0,0.93919]
[1766172187054,0.01140081,87713.0,87703.0,0.93919]
[1766172187260,0.0114012,87710.0,87700.0,0.00576]
[1766172187414,0.001099,87703.0,87700.0,0.00576]
[1766172187620,0.01140159,87707.0,87701.0,0.00576]
[1766172187798,0.06841222,87704.0,87701.0,0.00576]
[1766172188006,0.06840958,87707.0,87701.0,0.00576]
[1766172188218,0.01140172,87706.0,87701.0,0.00576]
[1766172188629,0.01140159,87707.0,87701.0,0.00576]
[1766172188827,0.01140172,87706.0,87701.0,0.00576]
[1766172189022,0.01140159,87707.0,87701.0,0.00576]
[1766172189229,0.01140159,87707.0,87681.0,0.01140497]
[1766172189230,0.05701254,87700.0,87683.0,0.93919]
[1766172189438,0.01140224,87702.0,87684.0,0.94495]
[1766172189659,0.01140211,87703.0,87686.0,0.55784]
[1766172189884,0.01140224,87702.0,87686.0,0.55784]
[1766172190027,0.01140211,87703.0,87686.0,0.56924432]
[1766172190028,0.06841277,87703.0,87686.0,0.56924432]
[1766172190242,0.01140185,87705.0,87687.0,0.99621045]
[1766172190450,0.01140198,87704.0,87689.0,0.93919]
[1766172190650,0.06841172,87705.0,87690.0,0.93919]
[1766172190861,0.01140198,87704.0,87691.0,0.00576]
[1766172191070,0.01140211,87703.0,87691.0,0.00576]
[1766172191276,0.06841481,87701.0,87691.0,0.00576]
[1766172191724,0.01140185,87705.0,87691.0,0.00576]
[1766172191921,0.01140224,87702.0,87691.0,0.00576]
[1766172192139,0.01140237,87701.0,87691.0,0.00576]
[1766172192335,0.01140224,87702.0,87691.0,0.00576]
[1766172192537,0.0114025,87700.0,87691.0,0.00576]
[1766172192793,0.06841483,87701.0,87691.0,0.00576]
[1766172192993,0.06841286,87703.0,87691.0,0.5636]
[1766172193164,0.0114025,87700.0,87691.0,0.94495]
[1766172194041,0.01140263,87699.0,87691.0,0.94495]
[1766172194416,0.06841566,87700.0,87691.0,0.94495]
[1766172194652,0.05701437,87698.0,87691.0,0.94495]
[1766172194813,0.06841543,87701.0,87691.0,0.94495]
[1766172195016,0.0114025,87700.0,87691.0,0.94495]
[1766172195446,0.01140263,87699.0,87691.0,0.94495]
[1766172195873,0.06841514,87700.0,87691.0,0.94495]
[1766172196035,0.06841446,87701.0,87691.0,0.94495]
[1766172196230,0.0114025,87700.0,87691.0,0.94495]
[1766172196435,0.001099,87691.0,87684.0,0.55784]
[1766172196932,0.06842178,87692.0,87684.0,0.55784]
[1766172197136,0.01140367,87691.0,87684.0,0.55784]
[1766172197585,0.9600825,87700.0,87682.0,0.38711]
[1766172197801,0.01140302,87696.0,87682.0,0.00576]
[1766172198021,0.01140289,87697.0,87682.0,0.00576]
[1766172198266,0.01140289,87697.0,87684.0,0.93919]
[1766172198267,0.01140315,87695.0,87684.0,0.93919]
[1766172198481,0.06841972,87694.0,87684.0,0.93919]
[1766172198702,0.06841972,87694.0,87682.0,0.00576]
[1766172198703,0.06840648,87711.0,87698.0,0.57355]
[1766172198920,0.01140107,87711.0,87701.0,0.98488]
[1766172199141,0.01140133,87709.0,87701.0,0.98488]
[1766172199387,0.01140133,87709.0,87699.0,0.00576]
[1766172199603,0.01140133,87709.0,87700.0,0.57355]
[1766172199825,0.06840622,87712.0,87701.0,0.98488]
[1766172200222,0.01139964,87722.0,87701.0,0.05701131]
[1766172200448,0.00010843,87722.0,87706.0,0.98488]
[1766172200665,0.01150807,87722.0,87707.0,0.00576]
[1766172200855,0.06839921,87721.0,87708.0,0.98488]
[1766172201403,0.01150807,87722.0,87710.0,0.98488]
[1766172201404,0.00010843,87722.0,87710.0,0.98488]
[1766172201613,0.01140016,87718.0,87710.0,0.98488]
[1766172201820,0.01150807,87722.0,87710.0,0.98488]
[1766172201996,0.0113999,87720.0,87710.0,0.98488]
[1766172202238,0.00010843,87722.0,87710.0,0.98488]
[1766172202669,0.00010843,87722.0,87710.0,0.41133]
[1766172202873,0.62779695,87733.0,87715.0,0.57355]
[1766172203078,0.01139899,87727.0,87720.0,0.41133]
[1766172203263,0.05699541,87727.0,87720.0,0.41143843]
[1766172203505,0.0683933,87728.0,87720.0,0.41143843]
[1766172203838,0.06839526,87726.0,87720.0,0.41143843]
[1766172204062,0.01139912,87726.0,87720.0,0.41143843]
[1766172204480,0.01139899,87727.0,87720.0,0.41143843]
[1766172204718,0.01139912,87726.0,87720.0,0.41143843]
[1766172205228,0.06839299,87729.0,87720.0,0.41143843]
[1766172205431,0.01139912,87726.0,87720.0,0.41143843]
[1766172205646,0.01139925,87725.0,87720.0,0.41143843]
[1766172205859,0.01139912,87726.0,87720.0,0.41143843]
[1766172206074,0.06839479,87726.0,87720.0,0.41143843]
[1766172206490,0.01139912,87726.0,87720.0,0.41143843]
[1766172206703,0.01139925,87725.0,87720.0,0.41143843]
[1766172207107,0.06839512,87726.0,87720.0,0.41143843]
[1766172207314,0.01139899,87727.0,87720.0,0.41143843]
[1766172207515,0.2393897,87724.0,87720.0,0.41143843]
[1766172207722,0.00099057,87720.0,87716.0,0.57931]
[1766172207927,0.00109892,87720.0,87716.0,0.57931]
[1766172208160,0.00010835,87720.0,87716.0,0.57931]
[1766172208751,0.0683948,87726.0,87717.0,0.98488]
[1766172208894,0.01139912,87726.0,87718.0,0.57355]
[1766172209096,0.01139899,87727.0,87718.0,0.57355]
[1766172209497,0.01139912,87726.0,87718.0,0.57355]
[1766172209717,0.01139795,87735.0,87726.0,0.000109]
[1766172209943,0.41698757,87738.0,87727.0,0.00576]
[1766172209944,0.01139757,87738.0,87727.0,0.00576]
[1766172210143,0.01139808,87734.0,87727.0,0.00576]
[1766172210342,0.06838796,87735.0,87727.0,0.00576]
[1766172210343,0.01139795,87735.0,87727.0,0.00576]
[1766172210590,0.0113986,87730.0,87727.0,0.00576]
[1766172210796,0.01139834,87732.0,87727.0,0.00477]
[1766172211041,0.01139821,87733.0,87727.0,0.00477]
[1766172211180,0.06838989,87733.0,87727.0,0.00477]
[1766172211375,0.01139847,87731.0,87727.0,0.00477]
[1766172211696,0.01139821,87733.0,87727.0,0.00477]
[1766172212073,0.01139795,87735.0,87727.0,0.98965]
[1766172212284,0.23935753,87735.0,87727.0,0.98965]
[1766172212511,0.01139834,87732.0,87727.0,0.98965]
[1766172212716,0.06838988,87733.0,87727.0,0.98965]
[1766172212855,0.01139834,87732.0,87727.0,0.98965]
[1766172213054,0.06838988,87733.0,87727.0,0.98965]
[1766172213282,0.0113986,87730.0,87727.0,0.00477]
[1766172213705,0.01139847,87731.0,87726.0,0.00576]
[1766172213913,0.0113986,87730.0,87726.0,0.00576]
[1766172214110,0.06839296,87729.0,87726.0,0.00576]
[1766172214319,0.41901,87720.0,87716.0,0.00576]
[1766172214520,0.3419497,87733.0,87716.0,0.00576]
[1766172214521,0.01139886,87728.0,87717.0,0.00576]
[1766172214718,0.01139938,87724.0,87720.0,0.001099]
[1766172214973,0.01139951,87723.0,87717.0,0.00576]
[1766172215179,0.02508231,87724.0,87717.0,0.00576]
[1766172215459,0.01368293,87724.0,87717.0,0.00576]
[1766172216201,0.01139899,87727.0,87718.0,0.54791]
[1766172216402,0.01139912,87726.0,87719.0,0.94317]
[1766172216629,0.06839633,87724.0,87719.0,0.94317]
[1766172216851,0.01139925,87725.0,87719.0,0.94317]
[1766172216852,0.06839616,87725.0,87719.0,0.94317]
[1766172217020,0.01139938,87724.0,87719.0,0.94317]
[1766172217198,0.01139912,87726.0,87719.0,0.94317]
[1766172217429,0.01139938,87724.0,87719.0,0.94317]
[1766172217631,0.05699759,87723.0,87719.0,0.94317]
[1766172217871,0.23938217,87726.0,87719.0,0.94317]
[1766172217872,0.01139925,87725.0,87719.0,0.94317]
[1766172218279,0.01139886,87728.0,87719.0,0.94317]
[1766172218508,0.01139938,87724.0,87719.0,0.94317]
[1766172218849,0.01139938,87724.0,87716.0,0.00010835]
[1766172218850,0.01139951,87723.0,87720.0,0.00576]
[1766172219051,0.05699229,87732.0,87723.0,0.001099]
[1766172219199,0.01139847,87731.0,87723.0,0.001099]
[1766172219614,0.01139847,87731.0,87720.0,0.00576]
[1766172219776,0.00576,87737.0,87720.0,0.00576]
[1766172219982,0.01139795,87735.0,87723.0,0.54791]
[1766172220182,0.01139782,87736.0,87724.0,0.39526]
[1766172220543,0.00576,87737.0,87727.0,0.54791]
[1766172220768,0.01139679,87744.0,87736.0,0.001099]
[1766172220973,0.01139705,87742.0,87736.0,0.001099]
[1766172221273,0.01139705,87742.0,87732.0,0.00576]
[1766172221274,0.00024926,87741.0,87732.0,0.00576]
[1766172221674,0.01164644,87741.0,87732.0,0.94893]
[1766172221882,0.01139744,87739.0,87734.0,0.39526]
[1766172222298,0.06863242,87741.0,87734.0,0.39526]
[1766172222598,0.01139731,87740.0,87734.0,0.39526]
[1766172222775,0.01164644,87741.0,87734.0,0.39526]
[1766172222961,0.01139731,87740.0,87734.0,0.39526]
[1766172223767,0.01139757,87738.0,87734.0,0.39526]
[1766172223969,0.06838503,87739.0,87732.0,0.55367]
[1766172223970,0.01139744,87739.0,87732.0,0.00576]
[1766172224171,0.05699045,87734.0,87732.0,0.00576]
[1766172224541,0.0683893,87733.0,87730.0,0.00576]
[1766172224779,0.0683893,87733.0,87716.0,0.00010835]
[1766172224780,0.01139847,87731.0,87716.0,0.00010835]
[1766172224979,0.06839262,87729.0,87717.0,0.00576]
[1766172225124,0.43040834,87732.0,87717.0,0.00576]
[1766172225325,0.48740037,87732.0,87717.0,0.94893]
[1766172225915,0.01139847,87731.0,87717.0,0.94893]
[1766172226090,0.06839113,87731.0,87717.0,0.94893]
[1766172226286,0.01139847,87731.0,87717.0,0.94893]
[1766172226490,0.0113986,87730.0,87717.0,0.94893]
[1766172226835,0.06839167,87730.0,87717.0,0.94893]
[1766172227283,0.01139886,87728.0,87717.0,0.94893]
[1766172227497,0.06839142,87731.0,87717.0,0.94893]
[1766172227738,0.06839168,87730.0,87717.0,0.94893]
[1766172227957,0.06839142,87731.0,87717.0,0.94893]
[1766172228144,0.01139847,87731.0,87717.0,0.94893]
[1766172228340,0.01139847,87731.0,87718.0,0.00576]
[1766172228680,0.06839113,87731.0,87718.0,0.55367]
[1766172228895,0.06838907,87734.0,87720.0,0.54791]
[1766172229025,0.01139834,87732.0,87720.0,0.54791]
[1766172229228,0.06839091,87731.0,87720.0,0.54791]
[1766172229425,0.0683899,87733.0,87721.0,0.00576]
[1766172229646,0.06838915,87734.0,87723.0,0.39526]
[1766172229858,0.01368293,87738.0,87725.0,0.39526]
[1766172230036,0.01368293,87738.0,87726.0,0.00576]
[1766172230541,0.01368293,87738.0,87727.0,0.39526]
[1766172230787,0.01139769,87737.0,87727.0,0.39526]
[1766172231026,0.0250805,87738.0,87728.0,0.54791]
[1766172231253,0.0250805,87738.0,87727.0,0.39526]
[1766172231632,0.01368293,87738.0,87727.0,0.39526]
[1766172231843,0.0250805,87738.0,87727.0,0.39526]
[1766172232057,0.01368293,87738.0,87727.0,0.39526]
[1766172232345,0.01139782,87736.0,87727.0,0.39526]
[1766172232576,0.01139769,87737.0,87728.0,0.00576]
[1766172232783,0.0250805,87738.0,87728.0,0.00576]
[1766172232953,0.06838514,87739.0,87728.0,0.00576]
[1766172233159,0.00024926,87741.0,87732.0,0.54791]
[1766172233355,0.00024926,87741.0,87734.0,0.54791]
[1766172233586,0.47242084,87750.0,87741.0,0.000249]
[1766172233587,0.2445,87750.0,87741.0,0.000249]
[1766172233751,0.05698265,87746.0,87742.0,0.00576]
[1766172233953,0.01139653,87746.0,87742.0,0.00576]
[1766172234366,0.01139627,87748.0,87742.0,0.00576]
[1766172234568,0.00024925,87749.0,87742.0,0.00576]
[1766172235173,0.01164539,87749.0,87742.0,0.00576]
[1766172235376,0.01139627,87748.0,87742.0,0.00576]
[1766172235578,0.06837781,87748.0,87742.0,0.00576]
[1766172235781,0.0686261,87749.0,87742.0,0.00576]
[1766172235998,0.01139627,87748.0,87742.0,0.00576]
[1766172236208,0.00024925,87749.0,87742.0,0.00576]
[1766172236615,0.01164539,87749.0,87742.0,0.00576]
[1766172237183,0.00024925,87749.0,87742.0,0.00576]
[1766172237828,0.06862611,87749.0,87742.0,0.00576]
[1766172237987,0.01139653,87746.0,87742.0,0.00576]
[1766172238190,0.01139666,87745.0,87740.0,0.94317]
[1766172238432,0.01139679,87744.0,87741.0,0.00576]
[1766172238639,0.06862661,87749.0,87741.0,0.00576]
[1766172238899,0.01139627,87748.0,87741.0,0.00576]
[1766172239110,0.01164539,87749.0,87741.0,0.00576]
[1766172239335,0.0113964,87747.0,87741.0,0.00576]
[1766172239536,0.01139692,87743.0,87741.0,0.00576]
[1766172239736,0.01139679,87744.0,87741.0,0.00576]
[1766172239942,0.01139666,87745.0,87741.0,0.00576]
[1766172240239,0.05698515,87743.0,87741.0,0.00576]
[1766172240452,0.0569847,87743.0,87741.0,0.00576]
[1766172240660,0.85215802,87747.0,87726.0,0.39526]
[1766172240661,0.06838707,87736.0,87733.0,0.00576]
[1766172240861,0.59915,87741.0,87733.0,0.00576]
[1766172240862,0.01139757,87738.0,87733.0,0.00576]
[1766172241037,0.06838324,87741.0,87733.0,0.00576]
[1766172241397,0.06838324,87741.0,87721.0,0.05703977]
[1766172241398,0.41901,87739.0,87723.0,0.54791]
[1766172241600,1.01816,87737.0,87724.0,0.00576]
[1766172241977,1.01816,87737.0,87722.0,0.05699796]
[1766172242176,0.22793897,87743.0,87737.0,0.001099]
[1766172242177,0.06838268,87743.0,87737.0,0.001099]
[1766172242445,1.75843611,87770.0,87725.0,0.00576]
[1766172242446,0.01139575,87752.0,87740.0,0.54791]